fUST/lending_fUST_20250724
["ID","MTS","AMOUNT","RATE_DAILY","PERIOD"]
[374528343,1753338640797,-604.81357136,0.00019167,2]
[374528345,1753338640807,-500.0,0.00019167,2]
[374528347,1753338640817,-604.81357136,0.00019167,2]
[374528349,1753338640828,-500.0,0.00019167,2]
[374528351,1753338640838,-500.0,0.00019167,2]
[374528353,1753338640848,-604.81357136,0.00019167,2]
[374528355,1753338640858,-500.0,0.00019167,2]
[374528357,1753338640867,-604.81357136,0.00019167,2]
[374528359,1753338640877,-604.81357136,0.00019167,2]
[374528360,1753338640887,-228.14247544,0.00019167,2]
[374528362,1753338640896,-604.81357136,0.00019167,2]
[374528364,1753338640906,-500.0,0.00019167,2]
[374528366,1753338640915,-604.81357136,0.00019167,2]
[374528368,1753338640925,-604.81357136,0.00019167,2]
[374528370,1753338640934,-604.81357136,0.00019167,2]
[374528372,1753338640943,-604.81357136,0.00019167,2]
[374528374,1753338640952,-604.81357136,0.00019167,2]
[374528376,1753338640961,-604.81357136,0.00019167,2]
[374528378,1753338640970,-604.81357136,0.00019167,2]
[374528380,1753338640980,-604.81357136,0.00019167,2]
[374528382,1753338640989,-604.81357136,0.00019167,2]
[374528384,1753338640998,-604.81357136,0.00019167,2]
[374528386,1753338641007,-604.81357136,0.00019167,2]
[374528388,1753338641017,-604.81357136,0.00019167,2]
[374528390,1753338641026,-604.81357136,0.00019167,2]
[374528392,1753338641036,-604.81357136,0.00019167,2]
[374528394,1753338641045,-604.81357136,0.00019167,2]
[374528396,1753338641055,-500.0,0.00019167,2]
[374528398,1753338641064,-604.81357136,0.00019167,2]
[374528400,1753338641075,-604.81357136,0.00019167,2]
[374528402,1753338641084,-604.81357136,0.00019167,2]
[374528404,1753338641093,-604.81357136,0.00019167,2]
[374528406,1753338641103,-460.0,0.00019178,2]
[374528408,1753338641113,-460.0,0.00019178,2]
[374528410,1753338641125,-460.0,0.00019178,2]
[374528412,1753338641134,-460.0,0.00019178,2]
[374528415,1753338641149,-414.18719147,0.00020547,2]
[374528417,1753338641163,-460.0,0.00020547,2]
[374528419,1753338641176,-460.0,0.00020547,2]
[374528422,1753338641188,-460.0,0.00020547,2]
[374528424,1753338641201,-460.0,0.00020547,2]
[374528426,1753338641213,-460.0,0.00020547,2]
[374528428,1753338641224,-460.0,0.00020547,2]
[374528430,1753338641236,-460.0,0.00020547,2]
[374528433,1753338641247,-260.0,0.00020555,2]
[374528435,1753338641259,-384.40415152,0.00020614,2]
[374528437,1753338641271,-2154.46934768,0.00020721,2]
[374528439,1753338641283,-470.69,0.0002082,2]
[374528442,1753338641296,-460.0,0.0002082,2]
[374528444,1753338641308,-500.0,0.0002082,2]
[374528446,1753338641320,-460.0,0.00020821,2]
[374528448,1753338641334,-460.0,0.00020821,2]
[374528451,1753338641347,-1203.47,0.00020821,2]
[374528453,1753338641358,-1116.63,0.00020821,2]
[374528455,1753338641370,-460.0,0.00020821,2]
[374528458,1753338641382,-460.0,0.00020821,2]
[374528460,1753338641394,-150.84426585,0.00020821,2]
[374528462,1753338641404,-460.0,0.00020821,2]
[374528464,1753338641415,-522.46,0.00020821,2]
[374528466,1753338641429,-460.0,0.00020821,2]
[374528469,1753338641442,-460.0,0.00020821,2]
[374528471,1753338641453,-523.21,0.00020821,2]
[374528473,1753338641467,-460.0,0.00020821,2]
[374528475,1753338641477,-460.0,0.00020821,2]
[374528477,1753338641487,-460.0,0.00020821,2]
[374528480,1753338641497,-460.0,0.00020821,2]
[374528482,1753338641509,-460.0,0.00020821,2]
[374528484,1753338641520,-460.0,0.00020821,2]
[374528486,1753338641532,-460.0,0.00020821,2]
[374528488,1753338641545,-178.70934786,0.00020835,2]
[374528491,1753338641556,-504.876,0.00020835,2]
[374528493,1753338641569,-420.0,0.00020888,2]
[374528495,1753338641582,-353.3,0.00020921,4]
[374528497,1753338641594,-239.0,0.0002099,2]
[374528500,1753338641607,-500.0,0.00021064,2]
[374528502,1753338641619,-470.69,0.00021094,2]
[374528504,1753338641631,-460.0,0.00021094,2]
[374528507,1753338641644,-460.0,0.00021095,2]
[374528509,1753338641656,-460.0,0.00021095,2]
[374528511,1753338641666,-1203.47,0.00021095,2]
[374528513,1753338641676,-1116.63,0.00021095,2]
[374528515,1753338641686,-460.0,0.00021095,2]
[374528517,1753338641697,-460.0,0.00021095,2]
[374528519,1753338641707,-460.0,0.00021095,2]
[374528522,1753338641720,-522.46,0.00021095,2]
[374528524,1753338641733,-460.0,0.00021095,2]
[374528526,1753338641744,-523.21,0.00021095,2]
[374528528,1753338641756,-460.0,0.00021095,2]
[374528530,1753338641766,-600.57,0.00021095,2]
[374528533,1753338641777,-460.0,0.00021095,2]
[374528535,1753338641787,-460.0,0.00021095,2]
[374528537,1753338641798,-460.0,0.00021095,2]
[374528539,1753338641810,-460.0,0.00021095,2]
[374528541,1753338641822,-460.0,0.00021095,2]
[374528544,1753338641835,-360.0,0.00021103,2]
[374528546,1753338641845,-164.22070886,0.00021149,2]
[374528548,1753338641857,-353.3,0.00021283,4]
[374528550,1753338641867,-470.69,0.00021368,2]
[374528552,1753338641878,-460.0,0.00021368,2]
[374528554,1753338641889,-460.0,0.00021369,2]
[374528556,1753338641899,-460.0,0.00021369,2]
[374528558,1753338641909,-1203.47,0.00021369,2]
[374528561,1753338641920,-1116.63,0.00021369,2]
[374528563,1753338641931,-460.0,0.00021369,2]
[374528565,1753338641941,-460.0,0.00021369,2]
[374528567,1753338641952,-460.0,0.00021369,2]
[374528569,1753338641963,-522.46,0.00021369,2]
[374528571,1753338641973,-460.0,0.00021369,2]
[374528573,1753338641984,-523.21,0.00021369,2]
[374528575,1753338641995,-460.0,0.00021369,2]
[374528578,1753338642006,-460.0,0.00021369,2]
[374528580,1753338642017,-460.0,0.00021369,2]
[374528582,1753338642028,-460.0,0.00021369,2]
[374528584,1753338642038,-460.0,0.00021369,2]
[374528586,1753338642049,-460.0,0.00021369,2]
[374528588,1753338642059,-365.31,0.00021392,2]
[374528590,1753338642070,-4249.75,0.00021633,10]
[374528592,1753338642080,-470.69,0.00021642,2]
[374528594,1753338642091,-460.0,0.00021642,2]
[374528596,1753338642101,-396.38,0.00021643,2]
[374528599,1753338642111,-1203.47,0.00021643,2]
[374528601,1753338642125,-1116.63,0.00021643,2]
[374528603,1753338642135,-460.0,0.00021643,2]
[374528605,1753338642146,-460.0,0.00021643,2]
[374528607,1753338642156,-522.46,0.00021643,2]
[374528609,1753338642167,-460.0,0.00021643,2]
[374528611,1753338642178,-523.21,0.00021643,2]
[374528613,1753338642189,-460.0,0.00021643,2]
[374528615,1753338642199,-460.0,0.00021643,2]
[374528617,1753338642211,-460.0,0.00021643,2]
[374528619,1753338642222,-460.0,0.00021643,2]
[374528621,1753338642233,-460.0,0.00021643,2]
[374528623,1753338642243,-483.68209332,0.00021643,2]
[374528626,1753338642254,-353.3,0.00021645,4]
[374528628,1753338642264,-458.82496052,0.00021651,2]
[374528630,1753338642275,-26964.08518,0.00021739,2]
[374528632,1753338642285,-2157.0,0.00021845,2]
[374528634,1753338642295,-969.0,0.00021845,2]
[374528636,1753338642306,-407.0,0.00021845,2]
[374528638,1753338642316,-421.197,0.00021845,2]
[374528640,1753338642327,-215.0738,0.00021872,2]
[374528642,1753338642338,-384.40415152,0.00021876,2]
[374528645,1753338642348,-470.69,0.00021916,2]
[374528647,1753338642359,-460.0,0.00021916,2]
[374528649,1753338642371,-500.0,0.00021916,2]
[374528651,1753338642381,-1203.47,0.00021917,2]
[374528653,1753338642390,-1116.63,0.00021917,2]
[374528655,1753338642400,-460.0,0.00021917,2]
[374528657,1753338642409,-460.0,0.00021917,2]
[374528659,1753338642419,-522.46,0.00021917,2]
[374528661,1753338642429,-460.0,0.00021917,2]
[374528663,1753338642438,-523.21,0.00021917,2]
[374528665,1753338642447,-460.0,0.00021917,2]
[374528667,1753338642457,-462.08968279,0.00021917,2]
[374528669,1753338642467,-460.0,0.00021917,2]
[374528671,1753338642476,-460.0,0.00021917,2]
[374528673,1753338642486,-460.0,0.00021917,2]
[374528675,1753338642495,-3007.35833008,0.00022,2]
[374528677,1753338642505,-157.0,0.00022,2]
[374528679,1753338642514,-1234.92,0.00022,7]
[374528681,1753338642524,-353.3,0.00022006,5]
[374528683,1753338642533,-500.0,0.0002216,2]
[374528685,1753338642544,-470.69,0.0002219,2]
[374528687,1753338642554,-460.0,0.0002219,2]
[374528689,1753338642564,-1203.47,0.00022191,2]
[374528691,1753338642573,-1116.63,0.00022191,2]
[374528693,1753338642583,-526.01364057,0.00022191,2]
[374528711,1753338642748,-460.0,0.00022191,2]
[374528713,1753338642759,-522.46,0.00022191,2]
[374528715,1753338642770,-460.0,0.00022191,2]
[374528717,1753338642779,-523.21,0.00022191,2]
[374528719,1753338642788,-460.0,0.00022191,2]
[374528721,1753338642797,-460.0,0.00022191,2]
[374528723,1753338642807,-460.0,0.00022191,2]
[374528725,1753338642816,-460.0,0.00022191,2]
[374528727,1753338642827,-353.3,0.00022368,5]
[374528729,1753338642837,-470.69,0.00022464,2]
[374528731,1753338642847,-460.0,0.00022464,2]
[374528733,1753338642856,-1203.47,0.00022465,2]
[374528735,1753338642865,-1116.63,0.00022465,2]
[374528737,1753338642874,-460.0,0.00022465,2]
[374528739,1753338642883,-522.46,0.00022465,2]
[374528741,1753338642892,-460.0,0.00022465,2]
[374528743,1753338642902,-523.21,0.00022465,2]
[374528745,1753338642911,-460.0,0.00022465,2]
[374528747,1753338642921,-460.0,0.00022465,2]
[374528749,1753338642930,-460.0,0.00022465,2]
[374528751,1753338642939,-460.0,0.00022465,2]
[374528753,1753338642948,-2154.46934766,0.00022561,2]
[374528755,1753338642957,-429.7456075,0.00022575,2]
[374528756,1753338642967,-429.7456075,0.00022575,2]
[374528759,1753338642976,-195.475429,0.00022603,2]
[374528761,1753338642985,-605.65,0.00022669,6]
[374528763,1753338642995,-672.38463491,0.00022675,3]
[374528764,1753338643004,-353.3,0.0002273,5]
[374528767,1753338643014,-470.69,0.00022738,2]
[374528768,1753338643023,-460.0,0.00022738,2]
[374528770,1753338643032,-1203.47,0.00022739,2]
[374528773,1753338643042,-1116.63,0.00022739,2]
[374528775,1753338643051,-460.0,0.00022739,2]
[374528776,1753338643060,-522.46,0.00022739,2]
[374528778,1753338643070,-460.0,0.00022739,2]
[374528781,1753338643083,-523.21,0.00022739,2]
[374528782,1753338643092,-156.74850953,0.00022739,2]
[374528784,1753338643102,-460.0,0.00022739,2]
[374528787,1753338643111,-460.0,0.00022739,2]
[374528790,1753338643123,-460.0,0.00022739,2]
[374528793,1753338643132,-587.0,0.00022765,2]
[374528796,1753338643141,-605.65,0.00022769,7]
[374528799,1753338643151,-153.0,0.00022795,2]
[374528802,1753338643162,-153.0,0.00022849,2]
[374528805,1753338643171,-149.926599,0.00022998,2]
[374528808,1753338643180,-43268.94729141,0.00023,4]
[374528811,1753338643189,-160.0,0.00023,2]
[374528814,1753338643200,-1124.9,0.00023,2]
[374528817,1753338643210,-470.69,0.00023012,2]
[374528819,1753338643219,-460.0,0.00023012,2]
[374528821,1753338643229,-500.0,0.00023012,2]
[374528823,1753338643239,-1203.47,0.00023013,2]
[374528825,1753338643248,-1116.63,0.00023013,2]
[374528827,1753338643257,-460.0,0.00023013,2]
[374528830,1753338643267,-522.46,0.00023013,2]
[374528832,1753338643276,-460.0,0.00023013,2]
[374528834,1753338643285,-523.21,0.00023013,2]
[374528836,1753338643295,-460.0,0.00023013,2]
[374528838,1753338643304,-460.0,0.00023013,2]
[374528841,1753338643313,-460.0,0.00023013,2]
[374528844,1753338643322,-157.0,0.00023014,7]
[374528847,1753338643335,-859.2070339,0.00023041,2]
[374528849,1753338643344,-353.3,0.00023091,6]
[374528851,1753338643354,-384.40415152,0.00023138,2]
[374528853,1753338643363,-153.0,0.00023178,2]
[374528855,1753338643372,-164.22070886,0.0002323,2]
[374528857,1753338643381,-223.0315306,0.00023241,2]
[374528859,1753338643391,-470.69,0.00023286,2]
[374528861,1753338643400,-460.0,0.00023286,2]
[374528863,1753338643409,-1203.47,0.00023287,2]
[374528865,1753338643419,-1116.63,0.00023287,2]
[374528867,1753338643428,-472.18277394,0.00023287,2]
[374528869,1753338643437,-522.46,0.00023287,2]
[374528871,1753338643447,-460.0,0.00023287,2]
[374528873,1753338643456,-523.21,0.00023287,2]
[374528875,1753338643466,-460.0,0.00023287,2]
[374528877,1753338643476,-460.0,0.00023287,2]
[374528879,1753338643485,-460.0,0.00023287,2]
[374528881,1753338643494,-307.5229081,0.00023452,2]
[374528883,1753338643504,-353.3,0.00023453,6]
[374528885,1753338643513,-149.926599,0.00023475,7]
[374528887,1753338643523,-806.64786777,0.0002348,2]
[374528889,1753338643532,-800.0,0.00023491,2]
[374528891,1753338643542,-1234.92,0.000235,7]
[374528893,1753338643551,-151.0,0.000235,10]
[374528895,1753338643560,-362.931082,0.0002351,8]
[374528897,1753338643570,-800.0,0.00023517,2]
[374528899,1753338643581,-470.69,0.0002356,2]
[374528900,1753338643591,-460.0,0.0002356,2]
[374528902,1753338643602,-1203.47,0.00023561,2]
[374528904,1753338643612,-1116.63,0.00023561,2]
[374528906,1753338643621,-522.46,0.00023561,2]
[374528908,1753338643630,-460.0,0.00023561,2]
[374528910,1753338643640,-523.21,0.00023561,2]
[374528912,1753338643649,-460.0,0.00023561,2]
[374528914,1753338643658,-460.0,0.00023561,2]
[374528916,1753338643668,-460.0,0.00023561,2]
[374528918,1753338643678,-467.0,0.00023562,2]
[374528920,1753338643688,-205.0,0.00023597,2]
[374528922,1753338643697,-1744.10092183,0.00023633,2]
[374528924,1753338643707,-153.0,0.00023671,2]
[374528926,1753338643716,-153.0,0.00023671,2]
[374528928,1753338643725,-153.0,0.00023671,2]
[374528930,1753338643735,-153.0,0.00023671,2]
[374528932,1753338643744,-153.0,0.00023671,2]
[374528934,1753338643754,-153.0,0.00023671,2]
[374528936,1753338643763,-153.0,0.00023671,2]
[374528939,1753338643773,-149.926599,0.00023745,3]
[374528941,1753338643783,-353.3,0.00023815,6]
[374528944,1753338643793,-160.0,0.00023822,5]
[374528947,1753338643802,-470.69,0.00023834,2]
[374528949,1753338643812,-460.0,0.00023834,2]
[374528951,1753338643821,-1203.47,0.00023835,2]
[374528953,1753338643831,-1116.63,0.00023835,2]
[374528954,1753338643841,-522.46,0.00023835,2]
[374528955,1753338643851,-579.25744539,0.00023835,2]
[374528956,1753338643861,-523.21,0.00023835,2]
[374528957,1753338643870,-460.0,0.00023835,2]
[374528958,1753338643879,-460.0,0.00023835,2]
[374528959,1753338643888,-460.0,0.00023835,2]
[374528960,1753338643898,-467.0,0.00023836,2]
[374528961,1753338643907,-500.0,0.00023836,2]
[374528962,1753338643915,-149.926599,0.00023869,10]
[374528963,1753338643924,-205.0,0.00023874,2]
[374528964,1753338643934,-452.911147,0.000239,7]
[374528965,1753338643943,-452.911147,0.000239,7]
[374528966,1753338643952,-395.835009,0.000239,7]
[374528967,1753338643961,-395.835009,0.000239,7]
[374528968,1753338643971,-151.0,0.000239,7]
[374528969,1753338643981,-179.759163,0.000239,7]
[374528970,1753338643990,-150.0,0.000239,5]
[374528971,1753338643999,-667.4608357,0.000239,2]
[374528972,1753338644009,-205.0,0.00023909,2]
[374528974,1753338644019,-5000.0,0.00023912,30]
[374528975,1753338644028,-2200.0,0.00023915,2]
[374528976,1753338644037,-149.926599,0.00023949,2]
[374528978,1753338644047,-149.926599,0.0002395,7]
[374528979,1753338644057,-168.0,0.00023958,2]
[374528980,1753338644066,-500.0,0.00023973,2]
[374528981,1753338644078,-1040.57581829,0.0002398,2]
[374528982,1753338644088,-500.0,0.00023989,2]
[374528983,1753338644097,-500.0,0.00023989,2]
[374528984,1753338644106,-500.0,0.00023989,2]
[374528985,1753338644117,-500.0,0.00023989,2]
[374528987,1753338644130,-500.0,0.00023989,2]
[374528988,1753338644139,-500.0,0.00023989,2]
[374528990,1753338644149,-500.0,0.00023989,2]
[374528991,1753338644159,-500.0,0.00023989,2]
[374528992,1753338644168,-500.0,0.00023989,2]
[374528993,1753338644178,-500.0,0.00023989,2]
[374528994,1753338644188,-348734.20746802,0.0002399,5]
[374528995,1753338644199,-151.0,0.0002399,7]
[374528996,1753338644209,-151.0,0.0002399,7]
[374528997,1753338644219,-151.216347,0.0002399,7]
[374528998,1753338644228,-151.0,0.0002399,7]
[374528999,1753338644238,-151.0,0.0002399,7]
[374529000,1753338644248,-151.0,0.0002399,7]
[374529002,1753338644258,-151.0,0.0002399,7]
[374529004,1753338644268,-151.0,0.0002399,7]
[374529006,1753338644277,-452.911147,0.0002399,7]
[374529008,1753338644287,-452.911147,0.0002399,7]
[374529010,1753338644296,-395.835009,0.0002399,7]
[374529012,1753338644305,-395.835009,0.0002399,7]
[374529014,1753338644315,-151.0,0.0002399,7]
[374529016,1753338644324,-164.54842336,0.0002399,2]
[374529018,1753338644335,-174673.51876147,0.00024,2]
[374529020,1753338644352,-76818.48123853,0.00024,2]
[374529022,1753338644361,-840.06856235,0.00024,7]
[374529023,1753338644371,-160.0,0.00024,7]
[374529024,1753338644380,-160.0,0.00024,7]
[374529025,1753338644389,-371.75213804,0.00024,7]
[374529026,1753338644398,-231.16387093,0.00024,7]
[374529027,1753338644407,-11334.07,0.00024,7]
[374529028,1753338644417,-1766.79,0.00024,7]
[374529029,1753338644426,-151.0,0.00024,7]
[374529030,1753338644435,-151.0,0.00024,7]
[374529031,1753338644445,-151.0,0.00024,7]
[374529032,1753338644454,-215.88777038,0.00024,7]
[374529033,1753338644464,-215.88777038,0.00024,10]
[374529034,1753338644472,-219.205835,0.00024,7]
[374529035,1753338644483,-219.205835,0.00024,7]
[374529036,1753338644493,-151.0,0.00024,7]
[374529037,1753338644502,-151.0,0.00024,7]
[374529038,1753338644511,-151.183589,0.00024,7]
[374529039,1753338644521,-151.0,0.00024,7]
[374529040,1753338644530,-151.0,0.00024,7]
[374529041,1753338644539,-31694.46,0.00024,2]
[374529042,1753338644548,-151.0,0.00024,7]
[374529043,1753338644559,-151.0,0.00024,7]
[374529044,1753338644568,-151.0,0.00024,7]
[374529045,1753338644577,-151.0,0.00024,7]
[374529046,1753338644588,-151.0,0.00024,7]
[374529047,1753338644597,-151.0,0.00024,7]
[374529048,1753338644607,-151.0,0.00024,7]
[374529049,1753338644616,-151.489859,0.00024,7]
[374529050,1753338644625,-271.963078,0.00024,7]
[374529051,1753338644634,-585.705489,0.00024,7]
[374529053,1753338644643,-585.705489,0.00024,7]
[374529055,1753338644653,-160.0,0.00024,7]
[374529057,1753338644662,-151.0,0.00024,7]
[374529059,1753338644671,-151.0,0.00024,7]
[374529061,1753338644681,-151.0,0.00024,7]
[374529063,1753338644690,-151.0,0.00024,7]
[374529065,1753338644699,-452.911147,0.00024,7]
[374529067,1753338644709,-452.911147,0.00024,7]
[374529069,1753338644718,-395.835009,0.00024,7]
[374529071,1753338644728,-395.835009,0.00024,7]
[374529073,1753338644737,-151.0,0.00024,7]
[374529075,1753338644746,-151.0,0.00024,7]
[374529077,1753338644756,-151.0,0.00024,7]
[374529079,1753338644765,-151.0,0.00024,7]
[374529081,1753338644775,-703.18,0.00024,5]
[374529083,1753338644785,-151.0,0.00024,7]
[374529085,1753338644797,-182.981314,0.00024,7]
[374529087,1753338644807,-151.0,0.00024,7]
[374529089,1753338644816,-151.0,0.00024,7]
[374529091,1753338644827,-151.0,0.00024,7]
[374529093,1753338644836,-151.0,0.00024,7]
[374529095,1753338644845,-151.0,0.00024,7]
[374529097,1753338644854,-151.0,0.00024,7]
[374529099,1753338644863,-301.281041,0.00024,7]
[374529101,1753338644873,-301.281041,0.00024,7]
[374529103,1753338644882,-151.0,0.00024,7]
[374529104,1753338644892,-160.0,0.00024,7]
[374529106,1753338644901,-199.260206,0.00024,7]
[374529108,1753338644911,-199.260206,0.00024,7]
[374529110,1753338644920,-250.0,0.00024016,2]
[374529112,1753338644931,-1010.0,0.00024026,2]
[374529114,1753338644941,-508.35189117,0.00024027,30]
[374529116,1753338644950,-500.0,0.00024033,2]
[374529119,1753338644960,-605.65,0.00024078,6]
[374529121,1753338644970,-522.25,0.00024079,5]
[374529123,1753338644979,-500.0,0.00024081,2]
[374529124,1753338644988,-500.0,0.00024086,2]
[374529127,1753338644998,-197.88,0.00024089,2]
[374529128,1753338645008,-149.926599,0.00024102,30]
[374529130,1753338645017,-470.69,0.00024108,2]
[374529132,1753338645027,-460.0,0.00024108,2]
[374529134,1753338645036,-1203.47,0.00024109,2]
[374529136,1753338645046,-1116.63,0.00024109,2]
[374529138,1753338645055,-522.46,0.00024109,2]
[374529140,1753338645065,-523.21,0.00024109,2]
[374529142,1753338645074,-155.96927424,0.00024109,2]
[374529144,1753338645084,-460.0,0.00024109,2]
[374529146,1753338645094,-460.0,0.00024109,2]
[374529148,1753338645103,-467.0,0.0002411,2]
[374529150,1753338645113,-500.0,0.0002411,2]
[374529151,1753338645126,-500.0,0.00024124,2]
[374529152,1753338645135,-6282.55,0.00024125,10]
[374529153,1753338645145,-365.31,0.00024146,2]
[374529154,1753338645154,-1086.70693008,0.00024153,7]
[374529155,1753338645164,-353.3,0.00024177,6]
[374529156,1753338645173,-2961.40032091,0.00024178,2]
[374529157,1753338645182,-605.65,0.00024178,3]
[374529158,1753338645192,-522.25,0.00024179,7]
[374529159,1753338645202,-149.926599,0.00024208,10]
[374529160,1753338645211,-605.81458021,0.00024278,4]
[374529161,1753338645221,-522.25,0.00024279,4]
[374529162,1753338645230,-149.926599,0.00024327,8]
[374529163,1753338645240,-500.0,0.00024352,2]
[374529164,1753338645249,-168.0,0.00024352,2]
[374529165,1753338645258,-500.0,0.00024356,2]
[374529166,1753338645268,-522.25,0.00024379,3]
[374529167,1753338645278,-470.69,0.00024382,2]
[374529168,1753338645288,-460.0,0.00024382,2]
[374529169,1753338645298,-1203.47,0.00024383,2]
[374529170,1753338645307,-1116.63,0.00024383,2]
[374529171,1753338645317,-522.46,0.00024383,2]
[374529172,1753338645328,-523.21,0.00024383,2]
[374529173,1753338645337,-460.0,0.00024383,2]
[374529174,1753338645347,-460.0,0.00024383,2]
[374529175,1753338645356,-467.0,0.00024384,2]
[374529176,1753338645366,-500.0,0.00024384,2]
[374529177,1753338645376,-160.0,0.000244,3]
[374529178,1753338645385,-160.0,0.000244,3]
[374529179,1753338645395,-160.0,0.000244,3]
[374529180,1753338645405,-2154.46934766,0.000244,2]
[374529181,1753338645414,-931.02370022,0.000244,2]
[374529182,1753338645424,-384.40415152,0.000244,2]
[374529183,1753338645433,-5000.0,0.00024406,30]
[374529184,1753338645443,-5000.0,0.00024406,30]
[374529185,1753338645452,-5000.0,0.00024406,30]
[374529186,1753338645462,-5000.0,0.00024406,30]
[374529187,1753338645472,-149.926599,0.00024425,7]
[374529188,1753338645481,-205.0,0.00024433,2]
[374529189,1753338645491,-500.0,0.00024438,2]
[374529190,1753338645500,-474.32336944,0.00024473,2]
[374529191,1753338645510,-500.0,0.00024477,2]
[374529192,1753338645519,-522.25,0.00024479,6]
[374529193,1753338645529,-205.0,0.00024479,2]
[374529194,1753338645539,-548.28386372,0.000245,2]
[374529195,1753338645548,-1177.0,0.000245,30]
[374529196,1753338645559,-190573.18141724,0.000245,4]
[374529197,1753338645626,-1820.15365623,0.0001907,2]
[374529199,1753338645671,-368.43763188,0.0001907,2]
[374529200,1753338645683,-26584.27702805,0.0001907,2]
[374529201,1753338645692,-460.0,0.00019178,2]
[374529202,1753338645701,-460.0,0.00019452,2]
[374529203,1753338645711,-209.88,0.00019726,2]
[374529204,1753338645720,-500.0,0.00023989,2]
[374529205,1753338645730,-500.0,0.00023989,2]
[374529206,1753338645739,-521.32426243,0.00023989,2]
[374529207,1753338645748,-5190.73245253,0.000245,4]
[374529208,1753338645764,-262.248948,0.000245,4]
[374529209,1753338645775,-274.51751388,0.000245,4]
[374529210,1753338645893,-3491.63525524,0.000245,4]
[374529211,1753338645905,-1197.18820411,0.000245,4]
[374529212,1753338645921,-428.8631626,0.00022274,2]
[374529213,1753338645930,-689.20493265,0.000245,4]
[374529214,1753338645941,-368.4693932,0.000245,4]
[374529215,1753338646849,-460.0,0.00019178,2]
[374529216,1753338646859,-13838.81540806,0.00024327,2]
[374529232,1753338873634,205.457217,0.00013699,2]
[374529241,1753339293241,179.829,0.00026027,120]
[374529248,1753339549316,-495.13272598,0.0001896,2]
[374529249,1753339549336,-644.62023551,0.00018964,2]
[374529250,1753339549363,-495.13272595,0.00018983,2]
[374529251,1753339549384,-181.25689255,0.00019007,2]
[374529253,1753339632672,-302.270211,0.00018055,2]
[374529254,1753339632692,-260.82825706,0.00018954,2]
[374529255,1753339632712,-260.82825706,0.00018956,2]
[374529256,1753339632733,-42.93030543,0.00018959,2]
[374529257,1753339643094,-202.63823808,0.00018854,2]
[374529258,1753339643115,-632.99252101,0.000189,2]
[374529259,1753339643134,-217.89795163,0.00018959,2]
[374529260,1753339643155,-260.82825706,0.00018961,2]
[374529261,1753339643179,-260.82825706,0.00018963,2]
[374529262,1753339643200,-171.45243897,0.00019054,2]
[374529263,1753339643220,-175.40883518,0.00019059,2]
[374529264,1753339654117,-124.59116482,0.00019059,2]
[374529265,1753339654138,-300.0,0.0001906,2]
[374529266,1753339654163,-300.0,0.0001906,2]
[374529267,1753339654193,-152.05456338,0.0001906,2]